[Event "VII Sunway Sitges Open 2020"]
[Site "Sitges"]
[Date "2020.12.16"]
[Round "4.27"]
[White "Ezquerro Luque, Albert"]
[Black "Travadon, Loic"]
[Result "0-1"]
[ECO "B23"]
[WhiteElo "2101"]
[BlackElo "2421"]
[Annotator "ChessBase"]
[PlyCount "70"]
[EventDate "2020.12.13"]
[EventType "swiss"]
[EventCountry "ESP"]
[SourceTitle "playchess.com"]
[Source "ChessBase"]
[SourceQuality "1"]
[TimeControl "40/5400+30:1800+30"]

1. e4 {[%emt 0:00:00]} c5 {[%emt 0:04:00]} 2. Nc3 {[%emt 0:00:00]} Nc6 {[%emt 0:00:04]} 3. f4 {[%emt 0:00:00]} e6 {[%emt 0:00:14]} 4. Nf3 {[%emt 0:00:06]} d5 {[%emt 0:00:17]} 5. Bb5 {[%emt 0:00:30]} Nge7 {[%emt 0:00:09]} 6. O-O {[%emt 0:01:24]} a6 {[%emt 0:00:23]} 7. Bxc6+ {[%emt 0:00:08]} Nxc6 {[%emt 0:00:07]} 8. d3 {[%emt 0:04:16]} Be7 {[%emt 0:00:18]} 9. Qe1 {[%emt 0:02:13]} O-O {[%emt 0:02:25]} 10. Qf2 {[%emt 0:09:07]} f5 {[%emt 0:05:22]} 11. exd5 {[%emt 0:02:12]} exd5 {[%emt 0:00:08]} 12. Re1 {[%emt 0:00:54]} d4 {[%emt 0:00:15]} 13. Nb1 {[%emt 0:01:59]} Bf6 {[%emt 0:02:35]} 14. Nbd2 {[%emt 0:01:24]} b5 {[%emt 0:01:36]} 15. Ne5 {[%emt 0:01:48]} Nxe5 {[%emt 0:00:23]} 16. fxe5 {[%emt 0:00:19]} Bh4 {[%emt 0:00:25]} 17. Qf3 {[%emt 0:06:46]} Rb8 {[%emt 0:05:29]} 18. Re2 {[%emt 0:03:39]} Rb6 {[%emt 0:00:56]} 19. a4 {[%emt 0:01:14]} Bb7 {[%emt 0:00:44]} 20. Qf1 {[%emt 0:02:11]} Be7 {[%emt 0:00:47]} 21. b3 {[%emt 0:03:26]} g5 {[%emt 0:03:39]} 22. axb5 {[%emt 0:07:01]} axb5 {[%emt 0:00:08]} 23. Nf3 {[%emt 0:00:18]} Rg6 {[%emt 0:02:42]} 24. Bd2 {[%emt 0:01:44]} Qd5 {[%emt 0:02:49]} 25. Ne1 {[%emt 0:01:04]} f4 {[%emt 0:03:42]} 26. h3 {[%emt 0:04:18]} Qe6 {[%emt 0:03:33]} 27. Kh2 {[%emt 0:03:02]} g4 {[%emt 0:01:59]} 28. Ra7 {[%emt 0:02:44]} Qb6 {[%emt 0:02:53]} 29. Rxb7 {[%emt 0:01:30]} Qxb7 {[%emt 0:00:11]} 30. Re4 {[%emt 0:00:10]} gxh3 {[%emt 0:00:14]} 31. gxh3 {[%emt 0:01:26]} Bh4 {[%emt 0:01:44]} 32. Qf3 {[%emt 0:03:02]} Bg3+ {[%emt 0:00:35]} 33. Kh1 {[%emt 0:00:02]} Qg7 {[%emt 0:01:57]} 34. e6 {[%emt 0:01:55]} Qh6 {[%emt 0:00:28]} 35. Qf1 {[%emt 0:04:26]} Rxe6 {[%emt 0:01:12]} 0-1

[Event "VII Sunway Sitges Open 2020"]
[Site "Sitges"]
[Date "2020.12.16"]
[Round "4.29"]
[White "Hapala, Elisabeth"]
[Black "Cuenca Jimenez, Jose Fernando"]
[Result "0-1"]
[ECO "B32"]
[WhiteElo "2154"]
[BlackElo "2528"]
[Annotator "ChessBase"]
[PlyCount "76"]
[EventDate "2020.12.13"]
[EventType "swiss"]
[EventCountry "ESP"]
[SourceTitle "playchess.com"]
[Source "ChessBase"]
[SourceQuality "1"]
[TimeControl "40/5400+30:1800+30"]

1. e4 {[%emt 0:00:00]} c5 {[%emt 0:00:00]} 2. Nf3 {[%emt 0:00:00]} Nc6 3. d4 {[%emt 0:00:00]} cxd4 {[%emt 0:00:00]} 4. Nxd4 {[%emt 0:00:00]} e5 {[%emt 0:00:06]} 5. Nb5 {[%emt 0:00:09]} d6 6. c4 {[%emt 0:02:34]} g6 {[%emt 0:01:26]} 7. N1c3 {[%emt 0:00:46]} a6 {[%emt 0:00:07]} 8. Na3 Be6 {[%emt 0:00:19]} 9. Nc2 {[%emt 0:01:50]} Bg7 {[%emt 0:03:43]} 10. Be2 {[%emt 0:16:21]} Nf6 {[%emt 0:09:42]} 11. Bg5 {[%emt 0:04:35]} Rc8 {[%emt 0:34:50]} 12. O-O h6 {[%emt 0:00:06]} 13. Bxf6 {[%emt 0:06:32]} Bxf6 {[%emt 0:02:12]} 14. Nd5 {[%emt 0:07:53]} Bg7 {[%emt 0:02:27]} 15. Nce3 {[%emt 0:19:33]} O-O {[%emt 0:03:00]} 16. Rc1 {[%emt 0:18:37]} f5 {[%emt 0:00:18]} 17. exf5 {[%emt 0:00:30]} gxf5 {[%emt 0:09:06]} 18. b3 {[%emt 0:05:27]} Nd4 {[%emt 0:03:57]} 19. f4 {[%emt 0:04:23]} b5 {[%emt 0:01:18]} 20. Kh1 {[%emt 0:01:56]} Kh8 {[%emt 0:05:54]} 21. Bd3 {[%emt 0:00:09]} e4 {[%emt 0:10:40]} 22. Be2 Qa5 23. Ne7 {[%emt 0:03:16]} Qxa2 {[%emt 0:00:42]} 24. Ng6+ Kh7 {[%emt 0:01:00]} 25. Nxf8+ {[%emt 0:00:17]} Rxf8 {[%emt 0:03:21]} 26. Re1 {[%emt 0:04:29]} Nxb3 {[%emt 0:00:13]} 27. Rc2 {[%emt 0:01:18]} Qa3 {[%emt 0:03:50]} 28. cxb5 {[%emt 0:01:12]} Nd4 {[%emt 0:01:53]} 29. Nc4 Qc5 {[%emt 0:00:27]} 30. Rc1 {[%emt 0:02:21]} axb5 31. Ne3 {[%emt 0:00:42]} Qb6 {[%emt 0:01:31]} 32. Rb1 {[%emt 0:00:33]} Rc8 {[%emt 0:00:40]} 33. h3 Rc3 {[%emt 0:01:20]} 34. Bf1 {[%emt 0:00:59]} Qc5 {[%emt 0:00:13]} 35. Rc1 {[%emt 0:00:31]} b4 36. Rxc3 Qxc3 {[%emt 0:01:47]} 37. Qc1 {[%emt 0:00:58]} Nb3 {[%emt 0:01:04]} 38. Qc2 {[%emt 0:00:36]} Qxe1 {[%emt 0:00:16]} 0-1

[Event "VII Sunway Sitges Open 2020"]
[Site "Sitges"]
[Date "2020.12.16"]
[Round "4.31"]
[White "Serrano Aspa, Xavier"]
[Black "Calvo Gonzalez, Jose Felix"]
[Result "1-0"]
[ECO "A05"]
[WhiteElo "2061"]
[BlackElo "1811"]
[Annotator "ChessBase"]
[PlyCount "81"]
[EventDate "2020.12.13"]
[EventType "swiss"]
[EventCountry "ESP"]
[SourceTitle "playchess.com"]
[Source "ChessBase"]
[SourceQuality "1"]
[TimeControl "40/5400+30:1800+30"]

1. Nf3 Nf6 2. b3 d5 3. Bb2 g6 4. e3 Bg7 5. c4 c6 6. Be2 O-O 7. O-O Bg4 8. Ne5 Bxe2 9. Qxe2 Nfd7 10. f4 Nxe5 11. fxe5 c5 12. d4 cxd4 13. exd4 Nc6 14. Rd1 Qb6 15. cxd5 Nxe5 16. Nc3 Nd7 17. Qxe7 Rad8 18. Na4 Qb5 19. Nc3 Qb6 20. Qh4 Nf6 21. Ba3 Rfe8 22. Bc5 Qa5 23. b4 Qa3 24. Nb5 Qe3+ 25. Kh1 g5 26. Qe1 Nxd5 27. Nd6 Qxe1+ 28. Rxe1 Rxe1+ 29. Rxe1 b6 30. Nb7 bxc5 31. Nxd8 cxd4 32. Nc6 Kf8 33. Rd1 Nc3 34. Rd3 Nxa2 35. b5 Ke8 36. Nxd4 Nc3 37. Nc6 Bf6 38. Nxa7 Na4 39. g4 Be5 40. Re3 f6 41. Nc6 1-0